bitfinex-derivatives/quotes_BNBF0:USTF0_20250710
["timestamp","ask_amount","ask_price","bid_price","bid_amount"]
[1752179026611,1.65796976,676.55,676.41,0.99181737]
[1752179026801,1.65796976,676.55,676.42,0.99181737]
[1752179026999,1.65796976,676.55,676.43,0.99181737]
[1752179027300,1.65796976,676.55,676.44,0.99181737]
[1752179027499,1.65796976,676.55,676.45,0.99181737]
[1752179027695,1.65796976,676.55,676.46,0.99181737]
[1752179027898,1.65796976,676.55,676.47,0.99181737]
[1752179028096,1.65796976,676.55,676.48,0.99181737]
[1752179028295,1.65796976,676.55,676.49,0.99181737]
[1752179028499,1.65796976,676.55,676.5,0.99181737]
[1752179028800,1.65796976,676.55,676.51,0.99181737]
[1752179029094,1.65796976,676.55,676.52,0.99181737]
[1752179029297,1.65796976,676.55,676.53,0.99181737]
[1752179029495,1.65796976,676.55,676.54,0.99181737]
[1752179034804,2.21197608,676.66,676.54,0.99181737]
[1752179035003,2.21197608,676.66,676.55,0.99181737]
[1752179035206,2.21197608,676.66,676.56,0.99181737]
[1752179035407,2.21197608,676.66,676.57,0.99181737]
[1752179035604,2.21197608,676.66,676.58,0.99181737]
[1752179035808,2.21197608,676.66,676.59,0.99181737]
[1752179036009,2.21197608,676.66,676.6,0.99181737]
[1752179036210,2.21197608,676.66,676.37,1.695]
[1752179036408,1.65765745,676.53,676.38,0.99189198]
[1752179036606,1.65765745,676.53,676.39,0.99189201]
[1752179036806,1.65765745,676.53,676.4,0.99189201]
[1752179037007,1.65765745,676.53,676.41,0.99189201]
[1752179037205,1.65765745,676.53,676.42,0.99189201]
[1752179037410,1.65765745,676.53,676.43,0.99189201]
[1752179037610,1.65765745,676.53,676.44,0.99189201]
[1752179037910,1.65765745,676.53,676.45,0.99189201]
[1752179038108,1.65765745,676.53,676.46,0.99189201]
[1752179038409,1.65765745,676.53,676.47,0.99189201]
[1752179038606,1.65765745,676.53,676.48,0.99189201]
[1752179038808,1.65765745,676.53,676.49,0.99189201]
[1752179039008,1.65765745,676.53,676.5,0.99189201]
[1752179039210,1.65765745,676.53,676.51,0.99189201]
[1752179039507,1.65765745,676.53,676.52,0.99189201]
[1752179041510,2.21197608,676.65,676.52,0.99189201]
[1752179041709,2.21197608,676.65,676.53,0.99189201]
[1752179042011,2.21197608,676.65,676.54,0.99189201]
[1752179042211,2.21197608,676.65,676.55,0.99189201]
[1752179042411,2.21197608,676.65,676.56,0.99189201]
[1752179042709,2.21197608,676.65,676.57,0.99189201]
[1752179042909,2.21197608,676.65,676.58,0.99189201]
[1752179043108,2.21197608,676.64,676.59,0.99189201]
[1752179043409,2.21197608,676.64,676.6,0.99189201]
[1752179043617,2.21197608,676.64,676.61,0.99189201]
[1752179043914,2.21197608,676.69,676.62,0.99231586]
[1752179044116,2.21197608,676.69,676.63,0.99231586]
[1752179044312,2.21197608,676.69,676.64,0.99231586]
[1752179044517,2.21197608,676.69,676.65,0.99231586]
[1752179044710,2.21197608,676.69,676.66,0.99231586]
[1752179045014,2.21197608,676.69,676.37,1.695]
[1752179045214,2.21197608,676.7,676.38,0.9922987]
[1752179045414,1.65861239,676.54,676.39,0.9922987]
[1752179045715,1.65861239,676.54,676.4,0.9922987]
[1752179045915,1.65861239,676.54,676.41,0.9922987]
[1752179046118,1.65861239,676.54,676.42,0.9922987]
[1752179046313,1.65861239,676.54,676.43,0.9922987]
[1752179046515,1.65861239,676.54,676.44,0.9922987]
[1752179046717,1.65861239,676.54,676.45,0.9922987]
[1752179046917,1.65861239,676.55,676.46,0.9922987]
[1752179047116,1.65861239,676.56,676.47,0.9922987]
[1752179047318,1.65861239,676.55,676.48,0.9922987]
[1752179047517,1.65861239,676.55,676.49,0.9922987]
[1752179047721,1.65861239,676.55,676.5,0.9922987]
[1752179047919,1.65861239,676.55,676.51,0.9922987]
[1752179048119,1.65861239,676.55,676.52,0.9922987]
[1752179048320,1.65861239,676.55,676.53,0.9922987]
[1752179048521,1.65861239,676.55,676.54,0.9922987]
[1752179049324,3.3254347,676.86,676.54,0.9922987]
[1752179049325,2.21197608,676.7,676.54,0.9922987]
[1752179049525,2.21197608,676.7,676.55,0.9922987]
[1752179049727,2.21197608,676.7,676.56,0.9922987]
[1752179049923,2.21197608,676.7,676.57,0.9922987]
[1752179050119,2.21197608,676.7,676.58,0.9922987]
[1752179050324,0.25715964,676.96,676.05,0.25714254]
[1752179050325,2.21197608,676.69,676.59,0.9922987]
[1752179050526,2.21197608,676.69,676.6,0.9922987]
[1752179050725,2.21197608,676.69,676.61,0.9922987]
[1752179050926,2.21197608,676.7,676.62,0.9922987]
[1752179051126,2.21197608,676.7,676.63,0.9922987]
[1752179051326,2.21197608,676.71,676.64,0.9922987]
[1752179051623,2.21197608,676.71,676.65,0.9922987]
[1752179051826,2.21197608,676.71,676.66,0.9922987]
[1752179052026,2.21197608,676.71,676.67,0.9922987]
[1752179052224,2.21197608,676.71,676.68,0.9922987]
[1752179052422,2.21197608,676.71,676.69,0.9922987]
[1752179052623,2.21197608,676.71,676.7,0.9922987]
[1752179053330,2.21197608,676.71,676.7,0.99299671]
[1752179053627,2.21197608,676.71,676.05,0.25714254]
[1752179053832,1.65988691,676.53,676.06,0.99299671]
[1752179054032,1.65988691,676.53,676.07,0.99299671]
[1752179054332,1.65988691,676.53,676.08,0.99299671]
[1752179054634,1.65988691,676.53,676.09,0.99299671]
[1752179054932,1.65988691,676.53,676.1,0.99299671]
[1752179055132,1.65988691,676.53,676.11,0.99299671]
[1752179055332,1.65988691,676.53,676.12,0.99299671]
[1752179055532,1.65988691,676.53,676.13,0.99299671]
[1752179055728,1.65988691,676.53,676.14,0.99299671]
[1752179055934,1.65988691,676.53,676.15,0.99299671]
[1752179056134,1.65988691,676.53,676.16,0.99299671]
[1752179056335,1.65988691,676.53,676.17,0.99299671]
[1752179056534,1.65988691,676.53,676.18,0.99299671]
[1752179056734,1.65988691,676.52,676.19,0.99299671]
[1752179056934,1.65988691,676.52,676.2,0.99299671]
[1752179057131,1.65988691,676.52,676.21,0.99299671]
[1752179057337,1.65988691,676.52,676.22,0.99299671]
[1752179057633,1.65988691,676.52,676.23,0.99299671]
[1752179057835,1.65988691,676.52,676.24,0.99299671]
[1752179058131,1.65988691,676.52,676.25,0.99299671]
[1752179058337,1.65988691,676.52,676.26,0.99299671]
[1752179058535,1.65988691,676.52,676.27,0.99299671]
[1752179058733,1.65988691,676.52,676.28,0.99299671]
[1752179058931,1.65988691,676.52,676.29,0.99299671]
[1752179059132,1.65988691,676.52,676.3,0.99299671]
[1752179059333,1.65988691,676.52,676.31,0.99299671]
[1752179059637,1.65988691,676.52,676.32,0.99299671]
[1752179059837,1.65988691,676.52,676.33,0.99299671]
[1752179060035,1.65988691,676.52,676.34,0.99299671]
[1752179060233,1.65988691,676.52,676.35,0.99299671]
[1752179060537,1.65988691,676.51,676.36,0.99299671]
[1752179060836,1.65988691,676.51,676.37,0.99299671]
[1752179061037,1.65988691,676.51,676.38,0.99299671]
[1752179061238,1.65988691,676.5,676.39,0.99299671]
[1752179061438,1.65988691,676.5,676.4,0.99299671]
[1752179061639,1.65988691,676.5,676.41,0.99299671]
[1752179061839,1.65988691,676.5,676.42,0.99299671]
[1752179062139,1.65988691,676.49,676.43,0.99299671]
[1752179062440,1.65988691,676.49,676.44,0.99299671]
[1752179062641,1.65988691,676.49,676.45,0.99299671]
[1752179062841,1.65988691,676.49,676.46,0.99299671]
[1752179063137,1.65988691,676.49,676.47,0.99299671]
[1752179063439,1.65988691,676.51,676.48,0.99299671]
[1752179063641,1.65988691,676.51,676.49,0.99299671]
[1752179063841,1.65988691,676.51,676.5,0.99299671]
[1752179065744,1.65988691,676.58,676.5,0.99299671]
[1752179065944,0.25715964,676.96,676.51,0.99299671]
[1752179065945,1.65988691,676.59,676.51,0.99299671]
[1752179066146,1.65988691,676.59,676.52,0.99299671]
[1752179066341,1.65988691,676.58,676.53,0.99299671]
[1752179066645,1.65988691,676.58,676.54,0.99299671]
[1752179066842,1.65988691,676.58,676.55,0.99299671]
[1752179067040,1.65988691,676.58,676.56,0.99299671]
[1752179067240,1.65988691,676.58,676.57,0.99299671]
[1752179067846,2.21197608,676.79,676.57,0.99299671]
[1752179068141,2.21197608,676.71,676.58,0.99299671]
[1752179068345,2.21197608,676.72,676.59,0.99299671]
[1752179068543,2.21197608,676.7,676.6,0.99299671]
[1752179068743,2.21197608,676.7,676.61,0.99299671]
[1752179068942,2.21197608,676.7,676.62,0.99299671]
[1752179069246,2.21197608,676.7,676.63,0.99299671]
[1752179069546,2.21197608,676.7,676.64,0.99299671]
[1752179069742,2.21197608,676.7,676.65,0.99299671]
[1752179069946,3.3254347,676.74,676.11,0.25720906]
[1752179070246,1.66033636,676.43,676.12,0.99318155]
[1752179070546,1.66033636,676.43,676.13,0.99318155]
[1752179070744,1.66033636,676.41,676.14,0.99318155]
[1752179070943,1.66033636,676.41,676.15,0.99322488]
[1752179071243,1.66033636,676.41,676.16,0.99322488]
[1752179071448,1.66033636,676.42,676.17,0.99322488]
[1752179071643,1.66033636,676.42,676.18,0.99322488]
[1752179071947,1.66033636,676.42,676.19,0.99322488]
[1752179072247,1.66033636,676.41,676.2,0.99322488]
[1752179072446,1.66033636,676.42,676.21,0.99322488]
[1752179072647,1.66033636,676.42,676.22,0.99322488]
[1752179072849,1.66033636,676.42,676.23,0.99322488]
[1752179073047,1.66033636,676.47,676.24,0.99322488]
[1752179073249,1.66033636,676.47,676.25,0.99322488]
[1752179073450,1.66033636,676.47,676.26,0.99322488]
[1752179073748,1.66033636,676.47,676.27,0.99322488]
[1752179074045,3.3254347,676.85,676.11,0.25720906]
[1752179074046,1.66033636,676.41,676.28,0.99322488]
[1752179074251,1.66033636,676.41,676.29,0.99322488]
[1752179074451,1.66033636,676.41,676.3,0.9929157]
[1752179074651,1.66033636,676.41,676.31,0.9929157]
[1752179074847,1.66033636,676.41,676.32,0.9929157]
[1752179075052,1.66033636,676.41,676.33,0.9929157]
[1752179075252,1.66033636,676.41,676.34,0.9929157]
[1752179075550,1.66033636,676.41,676.35,0.9929157]
[1752179075849,1.66033636,676.41,676.36,0.9929157]
[1752179076047,1.66033636,676.41,676.37,0.9929157]
[1752179076349,1.66033636,676.41,676.38,0.9929157]
[1752179076552,1.66033636,676.41,676.39,0.9929157]
[1752179076753,1.66033636,676.41,676.4,0.9929157]
[1752179077355,2.21378181,676.59,676.4,0.9929157]
[1752179077651,2.21378181,676.59,676.41,0.9929157]
[1752179077860,2.21378181,676.58,676.42,0.9929157]
[1752179078053,2.21378181,676.59,676.43,0.9929157]
[1752179078257,2.21378181,676.59,676.02,0.25724994]
[1752179078258,2.21378181,676.59,676.44,0.9929157]
[1752179078453,2.21378181,676.59,676.45,0.9929157]
[1752179078757,2.21378181,676.59,676.46,0.9929157]
[1752179078956,2.21378181,676.59,676.47,0.9929157]
[1752179079157,2.21378181,676.59,676.48,0.9929157]
[1752179079354,2.21378181,676.6,676.49,0.9929157]
[1752179079552,2.21378181,676.6,676.02,0.25724994]
[1752179079751,2.21378181,676.6,676.03,0.99224068]
[1752179079752,1.65830549,676.41,676.03,0.99224068]
[1752179079954,1.65830549,676.41,676.04,0.99224068]
[1752179080254,1.65830549,676.41,676.05,0.99223863]
[1752179080458,1.65830549,676.41,676.06,0.99223863]
[1752179080659,1.65830549,676.41,676.07,0.99223863]
[1752179080959,1.65830549,676.41,676.08,0.99210147]
[1752179081259,1.65830549,676.41,676.09,0.99210147]
[1752179081456,1.65830549,676.42,676.1,0.99210147]
[1752179081759,1.65830549,676.42,676.11,0.99210147]
[1752179081956,1.65830549,676.42,676.12,0.99210147]
[1752179082160,1.65830549,676.42,676.13,0.99210147]
[1752179082359,1.65830549,676.42,676.14,0.99210147]
[1752179082557,1.65830549,676.42,676.15,0.99210147]
[1752179082758,1.65830549,676.42,676.02,0.25724994]
[1752179082759,1.65830549,676.42,676.16,0.99210147]
[1752179082959,1.65830549,676.42,676.17,0.99210147]
[1752179083156,1.65830549,676.37,676.18,0.99210147]
[1752179083455,1.65830549,676.37,676.02,0.25724994]
[1752179083456,1.65738721,676.37,676.19,0.99210147]
[1752179083760,1.65738721,676.37,676.2,0.99210147]
[1752179083960,1.65738721,676.37,676.21,0.99210147]
[1752179084160,1.65738721,676.37,676.22,0.99210147]
[1752179084360,1.65738721,676.37,676.23,0.99210147]
[1752179084560,1.65738721,676.37,676.02,0.25724994]
[1752179084561,1.65738721,676.37,676.24,0.99210147]
[1752179084861,1.65738721,676.37,676.02,0.25724994]
[1752179085361,1.65738721,676.38,676.02,0.25724994]
[1752179085760,1.65738721,676.37,676.02,0.25724994]
[1752179085960,1.65738721,676.38,676.02,0.25724994]
[1752179086160,1.65738721,676.36,676.02,0.25724994]
[1752179087960,1.65738721,676.35,676.02,0.25724994]
[1752179088357,1.65738721,676.36,676.02,0.25724994]
[1752179092163,1.65738721,676.37,676.02,0.25724994]
[1752179106577,1.65738721,676.39,676.02,0.25724994]
[1752179107279,1.65738721,676.38,676.02,0.25724994]
[1752179114685,1.65738721,676.37,676.02,0.25724994]
[1752179115087,1.65738721,676.38,676.02,0.25724994]
[1752179116486,1.65738721,676.37,676.02,0.25724994]
[1752179119284,1.65738721,676.36,676.02,0.25724994]
[1752179122487,1.65738721,676.35,676.02,0.25724994]
[1752179123287,1.65738721,676.34,676.02,0.25724994]
[1752179124689,2.21378181,676.47,676.02,0.25724994]
[1752179124889,1.6589977,676.34,676.02,0.25724994]
[1752179125387,1.6589977,676.33,676.02,0.25724994]
[1752179126387,1.6589977,676.32,676.02,0.25724994]
[1752179127295,1.6589977,676.31,676.02,0.25724994]
[1752179128298,1.6589977,676.3,676.02,0.25724994]
[1752179130900,1.6589977,676.29,676.02,0.25724994]
[1752179132299,1.6589977,676.28,676.02,0.25724994]
[1752179133202,1.6589977,676.27,676.02,0.25724994]
[1752179134299,1.6589977,676.26,676.02,0.25724994]
[1752179135302,1.6589977,676.25,676.02,0.25724994]
[1752179136098,1.6589977,676.26,676.02,0.25724994]
[1752179136297,1.6589977,676.25,676.02,0.25724994]
[1752179136803,1.6589977,676.24,676.02,0.25724994]
[1752179139304,2.21378181,676.35,676.02,0.25724994]
[1752179139608,1.66254326,676.24,676.02,0.25724994]
[1752179139804,1.66254326,676.24,676.03,1.621]
[1752179141812,1.66254326,676.23,676.03,1.621]
[1752179142811,1.66254326,676.24,676.03,1.621]
[1752179143413,1.66254326,676.25,676.03,1.621]
[1752179145714,1.66254326,676.26,676.03,1.621]
[1752179149618,1.66254326,676.4,676.03,1.621]
[1752179149821,1.66254326,676.39,676.03,1.621]
[1752179150016,1.66254326,676.32,676.03,1.621]
[1752179150320,1.66254326,676.33,676.03,1.621]
[1752179151618,1.66254326,676.34,676.03,1.621]
[1752179153523,1.66254326,676.35,676.03,1.621]
[1752179156427,1.66254326,676.36,676.03,1.621]
[1752179159524,1.66254326,676.27,676.03,1.621]
[1752179160524,1.66046928,676.27,676.03,1.621]
[1752179161529,1.66046928,676.28,676.03,1.621]
[1752179162030,1.66046928,676.28,676.02,0.25724994]
[1752179164430,1.66046928,676.29,676.02,0.25724994]
[1752179165234,1.66046928,676.3,676.02,0.25724994]
[1752179165434,2.21378181,676.49,676.03,1.65]
[1752179165730,1.66010934,676.31,676.03,1.65]
[1752179166230,2.21378181,676.51,676.03,1.65]
[1752179166434,1.66010934,676.31,676.03,1.65]
[1752179167234,1.66010934,676.3,676.03,1.65]
[1752179174637,1.66010934,676.29,676.03,1.65]
[1752179175237,1.66010934,676.27,676.03,1.65]
[1752179175436,1.66010934,676.28,676.03,1.65]
[1752179176942,1.66010934,676.27,676.03,1.65]
[1752179177239,1.66010934,676.25,676.03,1.65]
[1752179178438,1.66010934,676.24,676.03,1.65]
[1752179178636,1.66010934,676.27,676.03,1.65]
[1752179180143,1.66010934,676.26,676.03,1.65]
[1752179180443,1.66010934,676.19,676.03,1.65]
[1752179181543,1.66010934,676.2,676.03,1.65]
[1752179185845,1.66010934,676.2,676.03,1.65]
[1752179188348,0.25715964,676.96,676.03,1.65]
[1752179188349,1.66010934,676.18,676.03,1.65]
[1752179188545,1.66010934,676.16,676.03,1.65]
[1752179191251,1.66010934,676.17,676.03,1.65]
[1752179192755,1.66010934,676.16,676.03,1.65]
[1752179193355,1.66010934,676.17,676.03,1.65]
[1752179193553,1.66010934,676.16,676.03,1.65]
[1752179199062,1.66010934,676.17,676.03,1.65]
[1752179200360,1.66010934,676.16,676.03,1.65]
[1752179201960,1.66010934,676.18,676.03,1.65]
[1752179202160,1.66010934,676.14,676.03,1.65]
[1752179211367,1.66010934,676.15,676.03,1.65]
[1752179211972,1.66010934,676.14,676.03,1.65]
[1752179212568,1.66010934,676.15,676.03,1.65]
[1752179213473,1.66010934,676.15,675.78,0.25735267]
[1752179216276,1.66010934,676.09,675.78,0.25735267]
[1752179216476,1.66010934,676.1,675.79,1.255]
[1752179216977,1.66010934,676.09,675.79,1.255]
[1752179217476,1.66010934,676.1,675.79,1.255]
[1752179219376,1.66010934,676.07,675.79,1.255]
[1752179221075,1.66010934,676.06,675.79,1.255]
[1752179222374,1.66010934,676.07,675.79,1.255]
[1752179223378,1.66010934,676.06,675.79,1.255]
[1752179223680,1.66010934,676.07,675.79,1.255]
[1752179224175,1.66010934,676.0,675.79,1.255]
[1752179225380,1.66010934,676.01,675.79,1.255]
[1752179227982,1.66010934,676.1,675.79,1.255]
[1752179228182,1.66010934,676.01,675.79,1.255]
[1752179228382,1.66010934,676.02,675.79,1.255]
[1752179229080,1.66010934,676.01,675.79,1.255]
[1752179229481,1.66010934,676.02,675.79,1.255]
[1752179230183,1.66010934,676.03,675.79,1.255]
[1752179230384,1.66010934,676.04,675.79,1.255]
[1752179232282,1.66010934,676.05,675.79,1.255]
[1752179234585,1.66010934,676.06,675.79,1.255]
[1752179236581,1.66010934,676.07,675.79,1.255]
[1752179237986,1.66010934,676.03,675.79,1.255]
[1752179238186,1.66010934,676.1,675.79,1.255]
[1752179238389,1.66010934,675.99,675.79,1.255]
[1752179238590,1.66010934,675.95,675.79,1.255]
[1752179238789,1.66010934,675.93,675.79,1.255]
[1752179239286,1.66010934,675.9,675.79,1.255]
[1752179239489,1.66010934,675.91,675.79,1.255]
[1752179239690,1.66010934,675.9,675.79,1.255]
[1752179239987,1.66010934,675.89,675.79,1.255]
[1752179240391,1.66010934,675.9,675.79,1.255]
[1752179242388,1.66010934,675.91,675.79,1.255]
[1752179243695,1.66010934,675.92,675.79,1.255]
[1752179244492,1.66010934,675.94,675.79,1.255]
[1752179246893,1.65002408,675.94,675.79,1.255]
[1752179247895,1.65002408,675.95,675.79,1.255]
[1752179249301,1.65002408,675.94,675.79,1.255]
[1752179249497,2.21378181,676.1,675.79,1.255]
[1752179249498,1.65002408,675.95,675.79,1.255]
[1752179250000,1.65002408,675.94,675.79,1.255]
[1752179250397,1.65002408,675.95,675.79,1.255]
[1752179251102,1.65002408,675.94,675.79,1.255]
[1752179251299,1.65002408,675.95,675.79,1.255]
[1752179251503,1.65002408,675.94,675.79,1.255]
[1752179251899,1.65002408,675.96,675.79,1.255]
[1752179253703,1.65002408,675.95,675.79,1.255]
[1752179254002,1.65002408,676.07,675.79,1.255]
[1752179255101,1.65002408,676.12,675.79,1.255]
[1752179255406,1.65002408,676.16,675.79,1.255]
[1752179256802,1.65002408,676.12,675.79,1.255]
[1752179257404,1.65002408,676.11,675.79,1.255]
[1752179260311,1.65002408,676.1,675.79,1.255]
[1752179262215,1.65002408,676.09,675.79,1.255]
[1752179263017,2.21378181,676.35,675.79,1.255]
[1752179263312,1.65182986,676.09,675.79,1.255]
[1752179263911,1.65182986,675.99,675.79,1.255]
[1752179265816,1.65182986,675.98,675.79,1.255]
[1752179266518,1.65182986,675.99,675.79,1.255]
[1752179267215,1.65182986,676.02,675.79,1.255]
[1752179269416,1.65182986,676.01,675.79,1.255]
[1752179271122,1.65182986,675.99,675.79,1.255]
[1752179272425,2.21378181,676.15,675.79,1.255]
[1752179272426,1.65182986,675.98,675.79,1.255]
[1752179274420,1.65182986,675.97,675.79,1.255]
[1752179276320,1.65182986,675.96,675.79,1.255]
[1752179276724,1.65182986,675.96,675.5,0.25745167]
[1752179277425,1.65182986,675.95,675.5,0.25745167]
[1752179277724,1.65182986,675.93,675.5,0.25745167]
[1752179278325,1.65182986,675.92,675.5,0.25745167]
[1752179279128,1.65568963,675.92,675.5,0.25745167]
[1752179279327,1.65568963,675.91,675.5,0.25745167]
[1752179280328,1.65568963,675.91,675.51,1.632]
[1752179280625,1.65568963,675.92,675.51,1.632]
[1752179281027,1.65568963,675.9,675.51,1.632]
[1752179281927,1.65568963,675.96,675.51,1.632]
[1752179282227,1.65568963,676.0,675.51,1.632]
[1752179282424,1.65568963,676.05,675.51,1.632]
[1752179282726,1.65568963,676.06,675.51,1.632]
[1752179283830,1.65568963,676.09,675.51,1.632]
[1752179287231,1.65568963,676.1,675.51,1.632]
[1752179288235,1.65568963,676.11,675.51,1.632]
[1752179289034,1.65568963,676.1,675.51,1.632]
[1752179289236,1.65619122,676.1,675.51,1.632]
[1752179289532,1.65619122,676.09,675.51,1.632]
[1752179289736,1.65619122,676.08,675.51,1.632]
[1752179290436,0.25733554,676.59,675.51,1.632]
[1752179290437,1.65619122,676.09,675.51,1.632]
[1752179290833,1.65619122,676.08,675.51,1.632]
[1752179291332,1.65619122,676.09,675.51,1.632]
[1752179291537,1.65619122,676.1,675.51,1.632]
[1752179291737,1.65619122,676.14,675.51,1.632]
[1752179292538,1.65619122,676.15,675.51,1.632]
[1752179293438,1.65619122,676.16,675.51,1.632]
[1752179293935,1.65619122,676.17,675.51,1.632]
[1752179294238,1.65619122,676.18,675.51,1.632]
[1752179294534,1.65619122,676.18,675.5,0.25745167]
[1752179296433,1.65619122,676.19,675.5,0.25745167]
[1752179297335,1.65619122,676.19,675.51,1.63]
[1752179298336,1.65619122,676.2,675.51,1.63]
[1752179299539,1.65619122,676.19,675.51,1.63]
[1752179299737,1.65619122,676.2,675.51,1.63]
[1752179301437,1.65619122,676.19,675.51,1.63]
[1752179303844,1.65619122,676.17,675.51,1.63]
[1752179306447,1.65619122,676.18,675.51,1.63]
[1752179308547,1.65619122,676.17,675.51,1.63]
[1752179310152,1.65619122,676.18,675.51,1.63]
[1752179310550,1.65619122,676.17,675.51,1.63]
[1752179310750,1.65619122,676.19,675.51,1.63]
[1752179311453,1.65619122,676.18,675.51,1.63]
[1752179311948,1.65619122,676.19,675.51,1.63]
[1752179314949,1.65619122,676.21,675.51,1.63]
[1752179315454,1.65619122,676.2,675.51,1.63]
[1752179317252,1.65619122,676.21,675.51,1.63]
[1752179317555,1.65619122,676.2,675.51,1.63]
[1752179317955,1.65619122,676.21,675.51,1.63]
[1752179319353,1.65619122,676.2,675.51,1.63]
[1752179320859,1.65619122,676.21,675.51,1.63]
[1752179321456,1.65619122,676.2,675.51,1.63]
[1752179323658,1.65619122,676.19,675.51,1.63]
[1752179324961,1.65619122,676.18,675.51,1.63]
[1752179325461,1.65619122,676.17,675.51,1.63]
[1752179330976,1.65619122,676.16,675.51,3.2883782]
[1752179331572,1.65619122,676.15,675.51,3.2883782]
[1752179331872,1.65619122,676.15,675.52,1.6583782]
[1752179332171,1.65619122,676.17,675.53,1.6583782]
[1752179332373,1.65619122,676.17,675.54,1.6583782]
[1752179333273,1.65619122,676.16,675.54,1.6583782]
[1752179335377,1.65619122,676.15,675.55,1.6583782]
[1752179336487,1.65619122,676.15,675.5,0.25745167]
[1752179336488,1.65619122,676.15,675.56,1.6583782]
[1752179336681,0.25733554,676.59,675.57,1.6583782]
[1752179336682,1.65619122,676.14,675.57,1.6583782]
[1752179336881,1.65619122,676.14,675.57,3.4293782]
[1752179337376,1.65619122,676.13,675.58,1.6583782]
[1752179338379,1.65619122,676.11,675.6,1.6583782]
[1752179339380,1.65619122,676.1,675.61,1.6583782]
[1752179340484,1.65619122,676.13,675.58,1.6583782]
[1752179340780,1.65619122,676.14,675.58,1.6583782]
[1752179341285,1.65619122,676.19,675.63,1.6583782]
[1752179341486,1.65619122,676.18,675.64,1.6583782]
[1752179342292,1.65619122,676.18,675.65,1.6583782]
[1752179343196,1.65619122,676.18,675.64,1.6583782]
[1752179343391,1.65619122,676.17,675.65,1.6583782]
[1752179346189,1.65619122,676.18,675.65,1.6583782]
[1752179346489,1.65619122,676.17,675.65,1.6583782]
[1752179346993,1.65619122,676.18,675.65,1.6583782]
[1752179347189,1.65619122,676.17,675.65,1.6583782]
[1752179349590,1.65619122,676.17,675.66,1.6583782]
[1752179349795,1.65619122,676.17,675.65,1.6583782]
[1752179350193,1.65619122,676.15,675.68,1.6583782]
[1752179350393,1.65619122,676.15,675.69,1.6583782]
[1752179350597,1.65619122,676.14,675.69,1.6583782]
[1752179350892,2.21378181,676.27,675.69,1.6583782]
[1752179350893,1.65619122,676.15,675.69,1.6583782]
[1752179352097,1.65619122,676.14,675.69,1.6583782]
[1752179352695,1.65619122,676.15,675.7,1.6583782]
[1752179353298,1.65619122,676.15,675.69,1.6583782]
[1752179355397,1.65619122,676.16,675.68,1.6583782]
[1752179356595,1.65619122,676.15,675.69,1.6583782]
[1752179359203,1.65619122,676.16,675.67,1.6583782]
[1752179359703,1.65619122,676.16,675.68,1.6583782]
[1752179361204,1.65619122,676.18,675.65,1.6583782]
[1752179363506,1.65619122,676.18,675.64,1.6583782]
[1752179364105,1.65619122,676.18,675.65,1.6583782]
[1752179364306,1.65619122,676.18,675.5,2.46833682]
[1752179364307,1.65619122,676.19,675.64,1.6583782]
[1752179365905,1.65619122,676.18,675.64,1.6583782]
[1752179366303,1.65619122,676.19,675.63,1.6583782]
[1752179366506,1.65619122,676.19,675.64,1.6583782]
[1752179367107,1.65619122,676.19,675.65,1.547]
[1752179371211,1.65619122,676.18,675.65,1.547]
[1752179372309,1.65619122,676.23,675.65,1.547]
[1752179373112,1.65619122,676.25,675.65,1.547]
[1752179375114,1.65619122,676.27,675.65,1.547]
[1752179377015,1.65619122,676.28,675.65,1.547]
[1752179377721,1.65619122,676.32,675.65,1.547]
[1752179379421,1.65882537,676.32,675.65,1.547]
[1752179381020,1.65882537,676.32,675.55,1.65991582]
[1752179382324,1.65882537,676.31,675.57,1.65991582]
[1752179383623,1.65882537,676.31,675.58,1.378]
[1752179384118,1.65882537,676.31,675.58,3.03791582]
[1752179384323,1.65882537,676.3,675.59,1.65991582]
[1752179385020,1.65882537,676.28,675.61,1.65991582]
[1752179385425,1.65882537,676.28,675.6,1.65991582]
[1752179385721,1.65882537,676.28,675.62,1.65991582]
[1752179386320,1.65882537,676.27,675.62,1.65991582]
[1752179387020,1.65882537,676.26,675.64,1.65991582]
[1752179387620,1.65882537,676.23,675.69,1.65991582]
[1752179388321,1.65882537,676.22,675.69,1.65991582]
[1752179390927,1.65882537,676.22,675.7,1.65991582]
[1752179391324,1.65882537,676.21,675.7,1.65991582]
[1752179393330,1.65882537,676.21,675.71,1.65991582]
[1752179395231,1.65882537,676.19,675.73,1.65991582]
[1752179396332,1.65882537,676.19,675.74,1.65991582]
[1752179396833,1.65882537,676.18,675.75,1.65991582]
[1752179397033,1.65882537,676.21,675.71,1.65991582]